{"text_format":"1","workbook":"xlsx","n_sheets":2,"sheets":["Tidsstudieblad","Ny Tidsstudieblad"],"not_rendered":{"charts":0,"images":0,"macros":1,"external_links":0,"defined_names":4,"comments":0,"pivot_tables":0},"unopened":[],"bounds":{"document_bytes":16777216,"sheet_cells":100000,"rows_first":2000,"rows_last":500,"rows_between":2000,"halvings":0,"cell_chars":16384,"cell_head_chars":4096},"cells_cut":0,"cells_raw":0,"read":"whole","date_system":"1900"}

{"sheet":"Tidsstudieblad","index":0,"n_rows":61,"n_cols":19,"rows_kept":61,"cut":false,"hidden":false,"merged":[[3,1,9,19],[11,3,19,19],[32,2,32,3],[32,11,32,12],[33,2,33,3],[33,11,33,12],[24,3,24,5],[26,3,26,5]]}
[null,"Tidsstudie för arbetsmoment"]
[]
[]
[null,"Inledning\n\nFör att kunna debitera kostnader på bland annat EU-projekt krävs en bakomliggande reviderbar kostnadskalkyl. Syftet till tidsstudien är att kunna göra en uppskattning hur stor del av arbetstiden som läggs på respektive djurslag/burtyp/arbetsmoment så att kostnaderna kan sedan fördelas proportionerligt i förhållande till total arbetstid för de olika typer av djurslag/burtyp/arbetsmoment som kan finnas.\nTidsstudien skall göras under minst två veckor. Skiljer sig resultatet mycket åt mellan veckorna måste perioden förlängas för att få ett mer rättvist värde.\nVidare behöver tidsstudien revideras vid större förändring i djurslag, burtyp eller arbetsmoment.\n\n "]
[]
[]
[]
[]
[]
[]
[]
[null,null,null,"Instruktion\nFyll i endast vita celler, samtliga färgade celler innehåller nödvändiga kalkyler/formler.\n\nBörja med att fylla i grundläggande uppgifter. Gå vidare med att skriva in en beskrivning av arbetsmomentet som ska mätas, detta kan vara diskning, städninig, eller någon annan form av arbetsmoment som ska mätas. Behöver ytterligare arbetsmoment infogas är det nödvändigt att även kopiera formlerna för de nya raderna.\n\nTiden anges i hela timmar samt påbörjad kvart, för respektive dag , enligt nedan:\n1 timme = 1,0; 15 minuter = 0,25; 30 minuter = 0,5; 45 minuter = 0,75"]
[]
[]
[]
[]
[]
[]
[]
[]
[]
[null,"GRUNDLÄGGANDE UPPGIFTER"]
[]
[null,"År"]
[null,"Kontaktperson"]
[]
[null,"Övrig uppgift (ex. djurslag, maskin, tjänst)"]
[]
[]
[]
[null,"TIDSSTUDIE VECKA 1",null,null,null,null,null,null,null,null,"TIDSSTUDIE VECKA 2"]
[]
[null,null,"Tidsstudie vecka",null,null,null,null,null,null,null,null,"Tidsstudie vecka"]
[]
[]
[null,"Beskrivning","Övrig info","Mån","Tis","Ons","Tor","Fre","Lör","Sön","Mån","Tis","Ons","Tor","Fre","Lör","Sön","Summa","Kommentarer"]
[null,null,null,null,null,null,null,null,null,null,null,null,null,null,null,null,null,0]
[null,null,null,null,null,null,null,null,null,null,null,null,null,null,null,null,null,0]
[null,null,null,null,null,null,null,null,null,null,null,null,null,null,null,null,null,0]
[null,null,null,null,null,null,null,null,null,null,null,null,null,null,null,null,null,0]
[null,null,null,null,null,null,null,null,null,null,null,null,null,null,null,null,null,0]
[null,null,null,null,null,null,null,null,null,null,null,null,null,null,null,null,null,0]
[null,null,null,null,null,null,null,null,null,null,null,null,null,null,null,null,null,0]
[null,null,null,null,null,null,null,null,null,null,null,null,null,null,null,null,null,0]
[null,null,null,null,null,null,null,null,null,null,null,null,null,null,null,null,null,0]
[null,null,null,null,null,null,null,null,null,null,null,null,null,null,null,null,null,0]
[null,null,null,null,null,null,null,null,null,null,null,null,null,null,null,null,null,0]
[null,null,null,null,null,null,null,null,null,null,null,null,null,null,null,null,null,0]
[null,null,null,null,null,null,null,null,null,null,null,null,null,null,null,null,null,0]
[null,null,null,null,null,null,null,null,null,null,null,null,null,null,null,null,null,0]
[null,null,null,null,null,null,null,null,null,null,null,null,null,null,null,null,null,0]
[null,null,null,null,null,null,null,null,null,null,null,null,null,null,null,null,null,0]
[null,"Totalt nedlagd tid",null,{"$f":"SUM(D37:D52)","v":0},{"$f":"SUM(E37:E52)","v":0},0,0,0,0,0,0,0,0,0,0,0,0,{"$f":"SUM(R37:R52)","v":0}]
[]
[]
[]
[]
[null,"Anställd",null,null,null,null,null,null,null,null,null,null,null,null,null,null,null,null,"Ledare"]
[]
[]
[null,"Signatur",null,null,null,null,null,null,null,null,null,null,null,null,null,null,null,null,"Signatur"]

{"sheet":"Ny Tidsstudieblad","index":1,"n_rows":61,"n_cols":19,"rows_kept":61,"cut":false,"hidden":true,"merged":[[33,2,33,3],[33,11,33,12],[3,1,9,19],[11,3,19,19],[24,3,24,5],[26,3,26,5],[32,2,32,3],[32,11,32,12]]}
[null,"Tidsstudie för arbetsmoment"]
[]
[]
[null,"Inledning\n\nFör att kunna debitera kostnader på bland annat EU-projekt krävs en bakomliggande reviderbar kostnadskalkyl. Syftet till tidsstudien är att kunna göra en uppskattning hur stor del av arbetstiden som läggs på respektive djurslag/burtyp/arbetsmoment så att kostnaderna kan sedan fördelas proportionerligt i förhållande till total arbetstid för de olika typer av djurslag/burtyp/arbetsmoment som kan finnas.\nTidsstudien skall göras under minst två veckor. Skiljer sig resultatet mycket åt mellan veckorna måste perioden förlängas för att få ett mer rättvist värde.\nVidare behöver tidsstudien revideras vid större förändring i djurslag, burtyp eller arbetsmoment.\n\n "]
[]
[]
[]
[]
[]
[]
[]
[null,null,null,"Instruktion\nFyll i endast vita celler, samtliga färgade celler innehåller nödvändiga kalkyler/formler.\n\nBörja med att fylla i grundläggande uppgifter. Gå vidare med att skriva in en beskrivning av arbetsmomentet som ska mätas, detta kan vara diskning, städninig, eller någon annan form av arbetsmoment som ska mätas. Behöver ytterligare arbetsmoment infogas är det nödvändigt att även kopiera formlerna för de nya raderna.\n\nTiden anges i hela timmar samt påbörjad kvart, för respektive dag , enligt nedan:\n1 timme = 1,0; 15 minuter = 0,25; 30 minuter = 0,5; 45 minuter = 0,75"]
[]
[]
[]
[]
[]
[]
[]
[]
[]
[null,"GRUNDLÄGGANDE UPPGIFTER"]
[]
[null,"År"]
[null,"Kontaktperson"]
[]
[null,"Övrig uppgift (ex. djurslag, maskin, tjänst)"]
[]
[]
[]
[null,"TIDSSTUDIE VECKA 1",null,null,null,null,null,null,null,null,"TIDSSTUDIE VECKA 2"]
[]
[null,null,"Tidsstudie vecka",null,null,null,null,null,null,null,null,"Tidsstudie vecka"]
[]
[]
[null,"Beskrivning","Övrig info","Mån","Tis","Ons","Tor","Fre","Lör","Sön","Mån","Tis","Ons","Tor","Fre","Lör","Sön","Summa","Kommentarer"]
[null,null,null,null,null,null,null,null,null,null,null,null,null,null,null,null,null,0]
[null,null,null,null,null,null,null,null,null,null,null,null,null,null,null,null,null,0]
[null,null,null,null,null,null,null,null,null,null,null,null,null,null,null,null,null,0]
[null,null,null,null,null,null,null,null,null,null,null,null,null,null,null,null,null,0]
[null,null,null,null,null,null,null,null,null,null,null,null,null,null,null,null,null,0]
[null,null,null,null,null,null,null,null,null,null,null,null,null,null,null,null,null,0]
[null,null,null,null,null,null,null,null,null,null,null,null,null,null,null,null,null,0]
[null,null,null,null,null,null,null,null,null,null,null,null,null,null,null,null,null,0]
[null,null,null,null,null,null,null,null,null,null,null,null,null,null,null,null,null,0]
[null,null,null,null,null,null,null,null,null,null,null,null,null,null,null,null,null,0]
[null,null,null,null,null,null,null,null,null,null,null,null,null,null,null,null,null,0]
[null,null,null,null,null,null,null,null,null,null,null,null,null,null,null,null,null,0]
[null,null,null,null,null,null,null,null,null,null,null,null,null,null,null,null,null,0]
[null,null,null,null,null,null,null,null,null,null,null,null,null,null,null,null,null,0]
[null,null,null,null,null,null,null,null,null,null,null,null,null,null,null,null,null,0]
[null,null,null,null,null,null,null,null,null,null,null,null,null,null,null,null,null,0]
[null,"Totalt nedlagd tid",null,{"$f":"SUM(D37:D52)","v":0},{"$f":"SUM(E37:E52)","v":0},0,0,0,0,0,0,0,0,0,0,0,0,{"$f":"SUM(R37:R52)","v":0}]
[]
[]
[]
[]
[null,"Anställd",null,null,null,null,null,null,null,null,null,null,null,null,null,null,null,null,"Ledare"]
[]
[]
[null,"Signatur",null,null,null,null,null,null,null,null,null,null,null,null,null,null,null,null,"Signatur"]